Workbook

Sheet ajuste anual sueldos y salarios
B2: Ajuste Anual de Sueldos y Salarios
B4: Introducción
B5: Es un proceso que se realiza en forma individual para cada uno de los trabajadores que cada patrón tiene. En el calculo participan los ingresos que por salarios perciben los trabajadores que hubieran prestado servicios personales subordinados a un patrón, el cual tiene la obligación de efectuar las retenciones por concepto de impuestos mensualmente, enterándose como pagos provisionales a cuenta del impuesto anual y saldar la diferencia de impuesto a favor o en contra de lo retenido mes con mes. .
B6: Se establece como excepción cuando los trabajadores
B7: Inicien la prestación de servicios después del 1º de enero
B8: Dejen de prestar servicios antes del 1º de diciembre
B9: Tengan un segundo patrón de forma simultanea
B10: Obtengan ingresos mayores a $400,000.00
B11: Comuniquen por escrito al retenedor (antes del 31 de diciembre) que presentarán declaración anual
B13: Desarrollo
B14: Para el proceso de la determinación del Calculo Anual es importante saber que todos los pagos de los trabajadores deben de estar timbrados y en su caso haber realizado las correcciones de los CFDI´s con errores. Una vez que se tenga toda a información correcta, procederemos a realizar el calculo anual de sueldos y salarios:
B16: Primer paso
B17: Concentrar el acumulado de percepciones gravadas y exentas que tuvo el empleado durante el año laborado para poder determinar una base gravable anual y el ISR descontado
B18: Ingresos | C18: Gravado | D18: Exento | E18: Total
A19: Mas (+) | B19: Salarios | C19: 50,000.00 | E19: =SUM(C19:D19) -> 50,000.00 | G19: 212,500.00
A20: Mas (+) | B20: Vacaciones | C20: 0.00 | E20: =SUM(C20:D20) -> 0.00 | G20: 9,450.00
A21: Mas (+) | B21: Prima vacacional | C21: 1,287.00 | D21: 1,303.20 | E21: 2,590.20 | G21: 2,362.50 | H21: 730.05
A22: Mas (+) | B22: Horas extra | C22: 120.00 | D22: 120.00 | E22: 240.00 | G22: 6,540.00 | H22: 6,540.00
A23: Mas (+) | B23: Aguinaldo | C23: 1,230.00 | D23: 2,606.40 | E23: 3,836.40 | G23: 8,250.00 | H23: 1,460.10
A24: Mas (+) | B24: Premios por puntualidad | C24: 0.00 | E24: 0.00 | G24: 2,500.00
A25: Mas (+) | B25: Gastos de viaje comprobados | D25: 0.00 | E25: 0.00 | H25: 14,500.00
A26: Mas (+) | B26: Gastos de viaje no comprobados | C26: 0.00 | E26: 0.00 | G26: 6,200.00
A27: Mas (+) | B27: Participación de utilidades (PTU) | C27: 550.00 | D27: 1303.2 | E27: 1,853.20 | G27: 2,420.00 | H27: 730.05
A28: Mas (+) | B28: Previsión social | D28: 0.00 | E28: 0.00 | H28: 15,200.00
A30: Igual (=) | B30: Ingresos totales del ejercicio | C30: =SUM(C19:C29) -> 53,187.00 | D30: =SUM(D19:D29) -> 5,332.80 | E30: 58,519.80
B32: Segundo paso
B33: Calcular el ISR de la Base Gravable Anual con la Tabla Anual de ISR para obtener un Impuesto Anual
B35: Ingresos del ejercicio por concepto del capítulo de salarios | C35: =+C30 -> 53,187.00
A36: Menos (-) | B36: Impuesto local a los ingresos por salarios retenido en el ejercicio* | C36: 0
A37: Igual (=) | B37: Base gravable | C37: =+C35-C36 -> 53,187.00
B38: * Aplicaría en el caso de que la entidad hubiera establecido dicho impuesto.
E39: TARIFA ANUAL Art. 152
B40: Base gravable | C40: =+C37 -> 53,187.00
A41: Menos (-) | B41: Límite inferior (tabla de impuesto) | C41: =LOOKUP(C40,E44:E54) -> 6,942.21 | E41: LIMITE | F41: LIMITE | G41: CUOTA | H41: % S/EXCEDENTE
A42: Igual (=) | B42: Excedente sobre el límite inferior | C42: =+C40-C41 -> 46,244.79 | E42: INFERIOR | F42: SUPERIOR | G42: FIJA | H42: LIM. INF.
A43: Por (x) | B43: Porcentaje s/ excedente | C43: =LOOKUP(C40,E44:E54,H44:H54) -> 6.40%
A44: Igual (=) | B44: Impuesto marginal | C44: =+C42*C43 -> 2,959.67 | E44: 0.01 | F44: 6,942.20 | G44: 0 | H44: 1.92%
A45: Mas (+) | B45: Cuota fija | C45: =LOOKUP(C40,E44:E54,G44:G54) -> 133.28 | E45: =+F44+0.01 -> 6,942.21 | F45: 58,922.16 | G45: 133.28 | H45: 6.40%
E46: 58,922.17 | F46: 103,550.44 | G46: 3,460.01 | H46: 10.88%
A47: Igual (=) | B47: Impuesto del Ejercicio | C47: =+C44+C45 -> 3,092.95 | E47: 103,550.45 | F47: 120,372.83 | G47: 8,315.57 | H47: 16.00%
A48: Menos (-) | B48: Subsidio al empleo causado | C48: 136.00 | E48: 120,372.84 | F48: 144,119.23 | G48: 11,007.14 | H48: 17.92%
E49: 144,119.24 | F49: 290,667.75 | G49: 15,262.49 | H49: 21.36%
A50: Igual (=) | B50: Impuesto Anual | C50: =+C47-C48 -> 2,956.95 | E50: 290,667.76 | F50: 458,132.29 | G50: 46,565.26 | H50: 23.52%
A51: Menos (-) | B51: ISR retenido mes a mes | C51: 2,900.00 | E51: 458,132.30 | F51: 874,650.00 | G51: 85,952.92 | H51: 30.00%
E52: 874,650.01 | F52: 1,166,200.00 | G52: 210,908.23 | H52: 32.00%
A53: Igual (=) | B53: Diferencia de ISR a cargo | C53: =+C50-C51 -> 56.95 | E53: 1,166,200.01 | F53: 3,498,600.00 | G53: 304,204.21 | H53: 34.00%
E54: 3,498,600.01 | F54: En adelante | G54: 1,097,220.21 | H54: 35.00%
B55: Si el descuento se le realiza al trabajador en el mes de Diciembre, se puede utilizar lo siguiente en el llenado del CFDI:
A57: Clave | B57: Deducción | C57: Importe
A58: 101 | B58: ISR derivado del ajuste anual | C58: =+C53 -> 56.95
B60: Si el descuento se realiza a partir del mes de Enero del 2021, se tiene que utilizar el procedimiento del Apéndice 8 "Procedimiento para el registro de a la diferencia de ISR a cargo (retención) derivado del calculo del impuesto anual por sueldos y salarios en el CFDI de Nomina".
B62: I. Nodo Deducción
B63: En el campo Tipo Deducción del Nodo: Deducción, se debe registrar la clave "101" (ISR Retenido de ejercicio anterior) del catalogo cTipoDeduccion, publicado en el Portal del SAT.
B65: En el campo Concepto del Nodo: Deducción, se debe registrar la siguiente descripción: "ISR Retenido de ejercicio anterior".
B67: En el campo Importe del Nodo: Deducción, se debe registrar el importe del ISR a cargo del trabajador derivado del calculo del impuesto anual.
A69: Clave | B69: Deducción | C69: Importe
A70: 101 | B70: ISR Retenido de ejercicio anterior | C70: =+C53 -> 56.95
B73: Fundamento Legal
B75: Art. 97 ISR Impuesto Anual de Salarios
B76: Art. 179 Reglam ISR Compensación de Saldos a Favor de trabajadores contra retenciones a otros.
